fUST/lending_fUST_20241202
["ID","MTS","AMOUNT","RATE_DAILY","PERIOD"]
[343933341,1733097040735,-500.0,0.00027397,3]
[343933342,1733097040744,-500.0,0.00027397,3]
[343933343,1733097040754,-500.0,0.00027397,3]
[343933344,1733097040763,-500.0,0.00027397,3]
[343933345,1733097040772,-501.40727662,0.00027397,3]
[343933346,1733097040782,-500.0,0.00027397,3]
[343933347,1733097040791,-500.0,0.00027397,3]
[343933348,1733097040804,-251.98092793,0.00027397,3]
[343933349,1733097040813,-500.0,0.00027397,3]
[343933350,1733097040824,-505.92044684,0.00027397,3]
[343933351,1733097040834,-500.0,0.00027397,3]
[343933352,1733097040844,-500.0,0.00027397,2]
[343933353,1733097040854,-500.0,0.00027397,3]
[343933354,1733097040863,-500.0,0.00027397,3]
[343933355,1733097040873,-500.0,0.00027397,3]
[343933356,1733097040882,-500.0,0.00027397,3]
[343933357,1733097040892,-500.0,0.00027397,3]
[343933358,1733097040902,-500.0,0.00027397,3]
[343933359,1733097040911,-500.0,0.00027397,3]
[343933360,1733097040921,-504.16862593,0.00027397,3]
[343933361,1733097040930,-500.0,0.00027397,3]
[343933362,1733097040940,-500.0,0.00027397,3]
[343933363,1733097040949,-500.0,0.00027397,3]
[343933364,1733097040959,-182.26809074,0.00027397,3]
[343933365,1733097040968,-500.0,0.00027397,3]
[343933366,1733097040977,-500.0,0.00027397,3]
[343933367,1733097040987,-500.0,0.00027397,3]
[343933368,1733097040997,-500.0,0.00027397,3]
[343933369,1733097041007,-500.0,0.00027397,3]
[343933370,1733097041017,-500.0,0.00027397,3]
[343933371,1733097041027,-500.0,0.00027397,3]
[343933372,1733097041036,-377.58169901,0.00027397,3]
[343933373,1733097041046,-711.27,0.00027397,3]
[343933374,1733097041055,-500.0,0.00027397,3]
[343933375,1733097041065,-500.0,0.00027397,3]
[343933376,1733097041074,-500.0,0.00027397,3]
[343933377,1733097041084,-500.0,0.00027397,3]
[343933378,1733097041094,-500.0,0.00027397,3]
[343933379,1733097041105,-500.0,0.00027397,3]
[343933380,1733097041115,-500.0,0.00027397,3]
[343933381,1733097041123,-500.0,0.00027397,3]
[343933382,1733097041133,-500.0,0.00027397,3]
[343933383,1733097041143,-500.0,0.00027397,3]
[343933384,1733097041158,-3000.0,0.00027397,120]
[343933385,1733097041168,-1151.27642427,0.00027397,120]
[343933386,1733097041178,-509.60766572,0.00027397,3]
[343933387,1733097041188,-500.0,0.00027397,3]
[343933388,1733097041199,-500.0,0.00027397,3]
[343933389,1733097041210,-250.05237602,0.00027397,3]
[343933390,1733097041220,-628.52350463,0.00027397,3]
[343933391,1733097041230,-959.26,0.00027397,3]
[343933392,1733097041240,-500.0,0.00027397,3]
[343933393,1733097041250,-500.0,0.00027397,3]
[343933394,1733097041260,-500.0,0.00027397,3]
[343933395,1733097041270,-500.0,0.00027397,3]
[343933396,1733097041279,-503.94855517,0.00027397,3]
[343933397,1733097041289,-511.90082464,0.00027397,3]
[343933398,1733097041298,-500.0,0.00027397,2]
[343933399,1733097041307,-500.0,0.00027397,3]
[343933400,1733097041316,-308.30657654,0.00027397,3]
[343933401,1733097041326,-500.0,0.00027397,3]
[343933402,1733097041336,-500.0,0.00027397,3]
[343933403,1733097041346,-500.0,0.00027397,3]
[343933404,1733097041356,-500.0,0.00027397,3]
[343933405,1733097041365,-500.0,0.00027397,3]
[343933406,1733097041375,-500.0,0.00027397,3]
[343933407,1733097041385,-500.0,0.00027397,3]
[343933408,1733097041394,-500.0,0.00027397,3]
[343933409,1733097041407,-192.18053832,0.00027397,3]
[343933410,1733097041416,-500.0,0.00027397,3]
[343933411,1733097041426,-500.0,0.00027397,3]
[343933412,1733097041435,-501.91607734,0.00027397,3]
[343933413,1733097041446,-500.0,0.00027397,3]
[343933414,1733097041455,-502.55516356,0.00027397,3]
[343933415,1733097041465,-503.14913615,0.00027397,3]
[343933416,1733097041474,-500.0,0.00027397,3]
[343933417,1733097041484,-500.0,0.00027397,3]
[343933418,1733097041495,-519.11398523,0.00027397,3]
[343933419,1733097041505,-500.0,0.00027397,3]
[343933420,1733097041515,-500.0,0.00027397,3]
[343933421,1733097041524,-500.0,0.00027397,3]
[343933422,1733097041534,-271.65726974,0.00027397,3]
[343933447,1733097044148,-500.0,0.00027373,2]
[343933448,1733097044159,-228.34273026,0.00027397,3]
[343933449,1733097044169,-506.96685846,0.00027397,3]
[343933450,1733097044179,-545.71808726,0.00027397,3]
[343933451,1733097044189,-500.0,0.00027397,3]
[343933453,1733097044199,-500.0,0.00027397,3]
[343933455,1733097044209,-185.03139523,0.00027397,3]
[343933456,1733097044243,-314.96860477,0.00027397,3]
[343933457,1733097044254,-500.0,0.00027397,3]
[343933458,1733097044264,-500.0,0.00027397,3]
[343933459,1733097044274,-500.0,0.00027397,3]
[343933460,1733097044284,-500.0,0.00027397,3]
[343933461,1733097044294,-500.0,0.00027397,3]
[343933462,1733097044305,-500.0,0.00027397,3]
[343933463,1733097044315,-500.0,0.00027397,3]
[343933464,1733097044324,-164.441274,0.00027397,7]
[343933465,1733097044334,-164.441274,0.00027397,7]
[343933466,1733097044344,-164.441274,0.00027397,7]
[343933467,1733097044354,-164.441274,0.00027397,7]
[343933468,1733097044364,-500.0,0.00027397,3]
[343933469,1733097044374,-500.0,0.00027397,3]
[343933470,1733097044383,-164.441274,0.00027397,7]
[343933471,1733097044393,-164.441274,0.00027397,7]
[343933473,1733097044404,-500.0,0.00027397,3]
[343933475,1733097044413,-164.441274,0.00027397,7]
[343933476,1733097044423,-164.441274,0.00027397,7]
[343933478,1733097044433,-500.0,0.00027397,3]
[343933479,1733097044442,-500.0,0.00027397,3]
[343933481,1733097044451,-164.441274,0.00027397,7]
[343933483,1733097044461,-263.75199788,0.00027397,3]
[343933522,1733097652246,162.478848,0.00013973,2]
[343933523,1733097776503,803.0,0.00026,60]
[343933525,1733098012112,-1944.70030661,0.00024151,2]
[343933527,1733098168081,-2146.25074197,0.00023909,2]
[343933575,1733098232280,-201.0,0.000255,2]
[343933578,1733098232290,-198.65946322,0.00026051,2]
[343933589,1733098232335,-42.05226378,0.00026051,2]
[343933592,1733098232344,-300.0,0.000265,2]
[343933595,1733098232354,-300.0,0.00026608,2]
[343933598,1733098232364,-1150.54168622,0.00026608,2]
[343933638,1733098238325,-601.926936,0.00026608,2]
[343933639,1733098238337,-2890.0733677,0.00026608,2]
[343933640,1733098238350,-1618.45801008,0.00026608,2]
[343933641,1733098238359,-89.63094492,0.00026612,2]
[343933642,1733098238486,-1062.10965688,0.00026612,2]
[343933657,1733098240236,-1034.2593982,0.00026612,2]
[343933658,1733098240246,-4001.01,0.00027,3]
[343933659,1733098240255,-543.13034252,0.00027281,2]
[343933660,1733098240264,-2191.70599955,0.00027296,2]
[343933661,1733098240274,-666.0,0.00027297,2]
[343933662,1733098240284,-6666.0,0.00027297,2]
[343933663,1733098240294,-151.0,0.00027297,7]
[343933664,1733098240303,-500.0,0.00027373,2]
[343933665,1733098240313,-500.0,0.00027373,2]
[343933666,1733098240323,-506.28450872,0.00027373,2]
[343933667,1733098240333,-730.56,0.00027387,3]
[343933668,1733098240343,-339.62,0.00027387,10]
[343933669,1733098240353,-600.45,0.00027387,10]
[343933670,1733098240362,-1800.99669903,0.00027396,2]
[343933671,1733098240372,-180.98922734,0.00027396,2]
[343933672,1733098240381,-158.10475109,0.00027396,2]
[343933673,1733098240391,-571.54541703,0.00027396,2]
[343933675,1733098240401,-862.26912838,0.00027396,2]
[343933676,1733098240410,-22316.12885053,0.00027397,2]
[343933677,1733098240420,-151.0,0.00027397,7]
[343933678,1733098240429,-151.0,0.00027397,7]
[343933679,1733098240438,-221.788856,0.00027397,7]
[343933680,1733098240448,-151.0,0.00027397,7]
[343933681,1733098240459,-151.0,0.00027397,7]
[343933682,1733098240468,-151.0,0.00027397,7]
[343933683,1733098240478,-151.0,0.00027397,7]
[343933684,1733098240491,-151.0,0.00027397,7]
[343933685,1733098240501,-151.0,0.00027397,7]
[343933686,1733098240511,-151.0,0.00027397,7]
[343933687,1733098240520,-235.929553,0.00027397,7]
[343933688,1733098240530,-151.0,0.00027397,7]
[343933689,1733098240540,-151.0,0.00027397,7]
[343933690,1733098240549,-151.0,0.00027397,7]
[343933691,1733098240559,-275.939161,0.00027397,7]
[343933692,1733098240571,-151.0,0.00027397,7]
[343933693,1733098240581,-151.0,0.00027397,7]
[343933694,1733098240590,-151.0,0.00027397,7]
[343933695,1733098240599,-151.0,0.00027397,7]
[343933696,1733098240610,-151.0,0.00027397,7]
[343933697,1733098240619,-151.0,0.00027397,7]
[343933698,1733098240629,-151.0,0.00027397,7]
[343933699,1733098240638,-187.277677,0.00027397,7]
[343933700,1733098240648,-500.0,0.00027397,3]
[343933701,1733098240657,-151.0,0.00027397,7]
[343933702,1733098240667,-151.0,0.00027397,7]
[343933703,1733098240676,-151.0,0.00027397,7]
[343933704,1733098240686,-151.0,0.00027397,7]
[343933705,1733098240695,-151.0,0.00027397,7]
[343933706,1733098240704,-247.505324,0.00027397,7]
[343933707,1733098240714,-158.99693861,0.00027397,3]
[343933708,1733098240723,-500.0,0.00027397,3]
[343933709,1733098240734,-500.0,0.00027397,3]
[343933710,1733098240744,-500.0,0.00027397,3]
[343933711,1733098240753,-500.0,0.00027397,3]
[343933712,1733098240763,-500.0,0.00027397,3]
[343933713,1733098240772,-500.0,0.00027397,3]
[343933714,1733098240781,-151.0,0.00027397,7]
[343933715,1733098240791,-151.0,0.00027397,7]
[343933716,1733098240801,-151.0,0.00027397,7]
[343933717,1733098240811,-177.854557,0.00027397,7]
[343933718,1733098240820,-607.10068506,0.00027397,3]
[343933719,1733098240829,-501.33166979,0.00027397,3]
[343933720,1733098240839,-500.0,0.00027397,3]
[343933721,1733098240849,-500.0,0.00027397,3]
[343933722,1733098240858,-509.67871588,0.00027397,3]
[343933723,1733098240867,-500.0,0.00027397,3]
[343933724,1733098240877,-501.98676923,0.00027397,3]
[343933725,1733098240887,-500.0,0.00027397,3]
[343933726,1733098240896,-500.0,0.00027397,3]
[343933727,1733098240906,-500.0,0.00027397,3]
[343933728,1733098240915,-569.63665809,0.00027397,3]
[343933729,1733098240924,-500.0,0.00027397,3]
[343933730,1733098240933,-500.0,0.00027397,3]
[343933731,1733098240943,-500.0,0.00027397,3]
[343933732,1733098240953,-500.0,0.00027397,3]
[343933733,1733098240963,-500.0,0.00027397,3]
[343933734,1733098240972,-506.5714307,0.00027397,3]
[343933735,1733098240982,-500.0,0.00027397,3]
[343933736,1733098240993,-500.0,0.00027397,3]
[343933737,1733098241003,-500.0,0.00027397,3]
[343933738,1733098241016,-500.0,0.00027397,3]
[343933739,1733098241025,-500.0,0.00027397,3]
[343933740,1733098241035,-254.75898187,0.00027397,3]
[343933741,1733098241045,-503.21672193,0.00027397,3]
[343933742,1733098241054,-500.0,0.00027397,3]
[343933743,1733098241064,-500.0,0.00027397,3]
[343933744,1733098241074,-500.0,0.00027397,3]
[343933745,1733098241084,-500.0,0.00027397,3]
[343933746,1733098241094,-500.0,0.00027397,3]
[343933747,1733098241105,-500.0,0.00027397,3]
[343933748,1733098241115,-296.63606779,0.00027397,3]
[343933749,1733098241124,-500.0,0.00027397,3]
[343933750,1733098241134,-500.0,0.00027397,3]
[343933751,1733098241148,-502.21717855,0.00027397,3]
[343933752,1733098241158,-500.0,0.00027397,3]
[343933753,1733098241168,-500.0,0.00027397,3]
[343933754,1733098241179,-500.0,0.00027397,3]
[343933755,1733098241190,-501.45447408,0.00027397,3]
[343933756,1733098241203,-500.0,0.00027397,3]
[343933757,1733098241212,-500.0,0.00027397,3]
[343933758,1733098241223,-500.0,0.00027397,3]
[343933759,1733098241233,-500.0,0.00027397,3]
[343933760,1733098241244,-500.0,0.00027397,3]
[343933761,1733098241254,-500.0,0.00027397,3]
[343933762,1733098241264,-500.0,0.00027397,3]
[343933763,1733098241273,-414.72535098,0.00027397,3]
[343933764,1733098241283,-502.44314808,0.00027397,3]
[343933765,1733098241292,-500.0,0.00027397,3]
[343933766,1733098241302,-500.0,0.00027397,3]
[343933767,1733098241312,-500.0,0.00027397,3]
[343933768,1733098241322,-151.0,0.00027397,7]
[343933769,1733098241331,-151.0,0.00027397,7]
[343933770,1733098241423,-151.0,0.00027397,7]
[343933771,1733098241435,-190.299705,0.00027397,7]
[343933772,1733098241446,-500.0,0.00027397,3]
[343933773,1733098241457,-500.0,0.00027397,3]
[343933774,1733098241467,-500.0,0.00027397,3]
[343933775,1733098241477,-500.0,0.00027397,3]
[343933776,1733098241494,-500.0,0.00027397,3]
[343933777,1733098241507,-500.0,0.00027397,3]
[343933778,1733098241518,-500.0,0.00027397,3]
[343933779,1733098241529,-372.91330924,0.00027397,3]
[343933780,1733098241539,-504.06860893,0.00027397,3]
[343933781,1733098241550,-500.0,0.00027397,3]
[343933782,1733098241561,-503.36584606,0.00027397,3]
[343933783,1733098241571,-500.0,0.00027397,3]
[343933784,1733098241581,-500.0,0.00027397,3]
[343933785,1733098241592,-500.0,0.00027397,3]
[343933786,1733098241603,-500.0,0.00027397,3]
[343933787,1733098241613,-500.0,0.00027397,3]
[343933788,1733098241623,-308.82396243,0.00027397,3]
[343933789,1733098241633,-500.0,0.00027397,3]
[343933790,1733098241642,-500.0,0.00027397,3]
[343933791,1733098241652,-500.0,0.00027397,3]
[343933792,1733098241661,-500.0,0.00027397,3]
[343933793,1733098241671,-500.0,0.00027397,2]
[343933794,1733098241681,-500.0,0.00027397,2]
[343933795,1733098241691,-500.0,0.00027397,3]
[343933796,1733098241701,-500.0,0.00027397,2]
[343933797,1733098241711,-500.0,0.00027397,2]
[343933798,1733098241721,-500.0,0.00027397,2]
[343933799,1733098241730,-473.69333651,0.00027397,2]
[343933800,1733098241744,-500.0,0.00027397,3]
[343933801,1733098241753,-500.0,0.00027397,3]
[343933802,1733098241763,-500.0,0.00027397,3]
[343933803,1733098241773,-500.0,0.00027397,3]
[343933804,1733098241783,-408.57687871,0.00027397,3]
[343933805,1733098241793,-503.35050149,0.00027397,3]
[343933806,1733098241803,-500.0,0.00027397,3]
[343933807,1733098241813,-500.0,0.00027397,3]
[343933808,1733098241823,-500.0,0.00027397,3]
[343933809,1733098241833,-641.95370559,0.00027397,3]
[343933810,1733098241842,-500.0,0.00027397,3]
[343933811,1733098241851,-500.0,0.00027397,3]
[343933812,1733098241861,-500.0,0.00027397,3]
[343933813,1733098241871,-500.0,0.00027397,3]
[343933814,1733098241880,-500.0,0.00027397,3]
[343933815,1733098241892,-500.0,0.00027397,3]
[343933816,1733098241902,-500.0,0.00027397,3]
[343933817,1733098241913,-500.0,0.00027397,3]
[343933818,1733098241923,-495.0,0.00027397,3]
[343933819,1733098241934,-500.0,0.00027397,3]
[343933820,1733098241945,-500.0,0.00027397,3]
[343933821,1733098241956,-500.0,0.00027397,3]
[343933822,1733098241966,-500.0,0.00027397,3]
[343933823,1733098241977,-501.7608286,0.00027397,3]
[343933824,1733098241989,-500.0,0.00027397,3]
[343933825,1733098242000,-500.0,0.00027397,2]
[343933826,1733098242011,-500.0,0.00027397,3]
[343933827,1733098242021,-303.93016494,0.00027397,3]
[343933828,1733098242031,-500.0,0.00027397,3]
[343933829,1733098242043,-500.0,0.00027397,3]
[343933830,1733098242053,-151.0,0.00027397,7]
[343933831,1733098242064,-151.0,0.00027397,7]
[343933832,1733098242074,-151.0,0.00027397,7]
[343933833,1733098242084,-500.0,0.00027397,3]
[343933834,1733098242094,-151.0,0.00027397,7]
[343933835,1733098242104,-151.0,0.00027397,7]
[343933836,1733098242114,-151.0,0.00027397,7]
[343933837,1733098242123,-151.0,0.00027397,7]
[343933838,1733098242132,-193.830756,0.00027397,7]
[343933839,1733098242142,-500.0,0.00027397,3]
[343933840,1733098242155,-500.0,0.00027397,3]
[343933841,1733098242164,-500.0,0.00027397,3]
[343933842,1733098242174,-500.0,0.00027397,3]
[343933843,1733098242184,-500.0,0.00027397,3]
[343933844,1733098242194,-500.0,0.00027397,3]
[343933845,1733098242204,-500.0,0.00027397,3]
[343933846,1733098242213,-500.0,0.00027397,3]
[343933847,1733098242223,-500.0,0.00027397,3]
[343933848,1733098242233,-500.0,0.00027397,3]
[343933849,1733098242246,-500.0,0.00027397,3]
[343933850,1733098242255,-500.0,0.00027397,3]
[343933851,1733098242264,-422.55967676,0.00027397,3]
[343933852,1733098242273,-189.75037717,0.00027397,3]
[343933853,1733098242283,-500.0,0.00027397,3]
[343933854,1733098242292,-500.0,0.00027397,3]
[343933855,1733098242301,-216.631022,0.00027397,7]
[343933856,1733098242311,-216.631022,0.00027397,7]
[343933857,1733098242321,-500.0,0.00027397,3]
[343933858,1733098242330,-500.0,0.00027397,3]
[343933859,1733098242339,-216.631022,0.00027397,7]
[343933860,1733098242349,-500.0,0.00027397,3]
[343933861,1733098242359,-216.631022,0.00027397,7]
[343933862,1733098242368,-216.631022,0.00027397,7]
[343933863,1733098242377,-500.0,0.00027397,3]
[343933864,1733098242387,-216.631022,0.00027397,7]
[343933865,1733098242396,-216.631022,0.00027397,7]
[343933866,1733098242405,-216.631022,0.00027397,7]
[343933867,1733098242414,-500.0,0.00027397,3]
[343933868,1733098242423,-216.631022,0.00027397,7]
[343933869,1733098242432,-216.631022,0.00027397,7]
[343933870,1733098242442,-216.631022,0.00027397,7]
[343933871,1733098242451,-500.0,0.00027397,3]
[343933872,1733098242460,-216.631022,0.00027397,7]
[343933873,1733098242470,-500.0,0.00027397,3]
[343933874,1733098242479,-216.631022,0.00027397,7]
[343933875,1733098242491,-216.631022,0.00027397,7]
[343933876,1733098242501,-216.631022,0.00027397,7]
[343933877,1733098242511,-500.0,0.00027397,3]
[343933878,1733098242520,-500.0,0.00027397,3]
[343933879,1733098242530,-151.0,0.00027397,7]
[343933880,1733098242539,-151.0,0.00027397,7]
[343933881,1733098242548,-500.0,0.00027397,3]
[343933882,1733098242558,-206.929844,0.00027397,7]
[343933883,1733098242568,-500.0,0.00027397,3]
[343933884,1733098242578,-216.631022,0.00027397,7]
[343933885,1733098242589,-216.631022,0.00027397,7]
[343933886,1733098242599,-216.631022,0.00027397,7]
[343933888,1733098242609,-216.631022,0.00027397,7]
[343933891,1733098242619,-216.631012,0.00027397,7]
[343933893,1733098242629,-529.36186343,0.00027397,3]
[343933894,1733098242639,-500.0,0.00027397,3]
[343933895,1733098242648,-483.53915204,0.00027397,3]
[343933896,1733098242658,-285.75714118,0.00027397,3]
[343933897,1733098242668,-627.67246432,0.00027397,3]
[343933898,1733098242679,-502.65604003,0.00027397,3]
[343933899,1733098242688,-504.39944899,0.00027397,3]
[343933900,1733098242698,-500.0,0.00027397,3]
[343933901,1733098242707,-500.0,0.00027397,3]
[343933902,1733098242717,-742.07,0.00027397,3]
[343933903,1733098242727,-500.0,0.00027397,3]
[343933904,1733098242738,-500.0,0.00027397,3]
[343933905,1733098242750,-855.34,0.00027397,3]
[343933906,1733098242760,-500.0,0.00027397,3]
[343933907,1733098242769,-500.0,0.00027397,3]
[343933908,1733098242778,-500.0,0.00027397,3]
[343933909,1733098242788,-500.0,0.00027397,3]
[343933910,1733098242797,-503.3050468,0.00027397,3]
[343933911,1733098242807,-500.0,0.00027397,3]
[343933912,1733098242816,-500.0,0.00027397,3]
[343933913,1733098242826,-526.6751914,0.00027397,3]
[343933914,1733098242835,-500.0,0.00027397,3]
[343933915,1733098242846,-500.0,0.00027397,3]
[343933916,1733098242855,-151.0,0.00027397,7]
[343933917,1733098242865,-500.0,0.00027397,3]
[343933918,1733098242875,-151.0,0.00027397,7]
[343933919,1733098242884,-500.0,0.00027397,3]
[343933920,1733098242894,-157.16459311,0.00027397,3]
[343933921,1733098242903,-151.0,0.00027397,7]
[343933922,1733098242913,-151.0,0.00027397,7]
[343933923,1733098242923,-151.0,0.00027397,7]
[343933924,1733098242932,-151.0,0.00027397,7]
[343933925,1733098242942,-502.6437762,0.00027397,3]
[343933926,1733098242952,-252.554627,0.00027397,7]
[343933927,1733098242962,-1000.0,0.00027397,2]
[343933928,1733098242971,-500.0,0.00027397,3]
[343933929,1733098242980,-525.85430291,0.00027397,3]
[343933930,1733098242996,-500.0,0.00027397,3]
[343933931,1733098243005,-505.23798202,0.00027397,3]
[343933932,1733098243016,-500.0,0.00027397,3]
[343933933,1733098243026,-464.31010974,0.00027397,3]
[343933934,1733098243035,-500.0,0.00027397,3]
[343933936,1733098243045,-445.69192735,0.00027397,3]
[343933938,1733098243054,-500.0,0.00027397,3]
[343933939,1733098243064,-500.0,0.00027397,3]
[343933941,1733098243075,-503.25175192,0.00027397,3]
[343933943,1733098243084,-365.313258,0.00027397,7]
[343933945,1733098243094,-365.313258,0.00027397,7]
[343933947,1733098243105,-504.04210714,0.00027397,3]
[343933949,1733098243114,-502.31845153,0.00027397,3]
[343933951,1733098243196,-365.313258,0.00027397,7]
[343933952,1733098243207,-365.313258,0.00027397,7]
[343933953,1733098243217,-365.313258,0.00027397,7]
[343933954,1733098243228,-365.313258,0.00027397,7]
[343933955,1733098243243,-365.313258,0.00027397,7]
[343933956,1733098243253,-365.313258,0.00027397,7]
[343933957,1733098243264,-365.313258,0.00027397,7]
[343933958,1733098243274,-365.313258,0.00027397,7]
[343933959,1733098243284,-553.23937834,0.00027397,3]
[343933961,1733098243294,-365.313258,0.00027397,7]
[343933963,1733098243304,-500.0,0.00027397,3]
[343933964,1733098243315,-365.313258,0.00027397,7]
[343933965,1733098243324,-500.0,0.00027397,3]
[343933966,1733098243333,-365.313258,0.00027397,7]
[343933967,1733098243343,-365.313258,0.00027397,7]
[343933968,1733098243353,-365.313258,0.00027397,7]
[343933969,1733098243362,-365.313258,0.00027397,7]
[343933970,1733098243372,-365.313258,0.00027397,7]
[343933972,1733098243382,-365.313258,0.00027397,7]
[343933974,1733098243392,-365.313258,0.00027397,7]
[343933975,1733098243402,-502.16956235,0.00027397,3]
[343933977,1733098243411,-365.313263,0.00027397,7]
[343933979,1733098243420,-502.14577109,0.00027397,3]
[343933980,1733098243430,-500.0,0.00027397,3]
[343933981,1733098243440,-500.0,0.00027397,3]
[343933982,1733098243449,-529.12613786,0.00027397,3]
[343933983,1733098243459,-500.0,0.00027397,3]
[343933984,1733098243469,-500.0,0.00027397,3]
[343933985,1733098243478,-517.7123146,0.00027397,3]
[343933986,1733098243492,-500.0,0.00027397,3]
[343933987,1733098243502,-500.0,0.00027397,3]
[343933988,1733098243511,-500.0,0.00027397,3]
[343933989,1733098243521,-500.0,0.00027397,3]
[343933990,1733098243531,-500.0,0.00027397,3]
[343933991,1733098243541,-500.0,0.00027397,3]
[343933992,1733098243551,-500.0,0.00027397,3]
[343933993,1733098243561,-500.0,0.00027397,3]
[343933994,1733098243571,-505.95580433,0.00027397,3]
[343933995,1733098243581,-500.0,0.00027397,3]
[343933996,1733098243591,-501.84898082,0.00027397,3]
[343933997,1733098243602,-500.0,0.00027397,3]
[343933998,1733098243612,-500.0,0.00027397,3]
[343933999,1733098243623,-500.0,0.00027397,3]
[343934000,1733098243633,-500.0,0.00027397,3]
[343934001,1733098243643,-500.0,0.00027397,3]
[343934002,1733098243653,-500.0,0.00027397,3]
[343934003,1733098243663,-500.0,0.00027397,3]
[343934004,1733098243672,-247.13592623,0.00027397,3]
[343934012,1733098243972,-500.37,0.00027387,10]
[343934013,1733098243982,-252.86407377,0.00027397,3]
[343934014,1733098243995,-501.33159089,0.00027397,3]
[343934015,1733098244004,-500.0,0.00027397,3]
[343934016,1733098244014,-501.59006949,0.00027397,3]
[343934017,1733098244024,-623.23546272,0.00027397,3]
[343934018,1733098244034,-502.18642922,0.00027397,3]
[343934019,1733098244043,-500.0,0.00027397,3]
[343934020,1733098244055,-506.42002059,0.00027397,3]
[343934021,1733098244064,-528.54729865,0.00027397,3]
[343934022,1733098244074,-511.21059534,0.00027397,3]
[343934023,1733098244083,-500.0,0.00027397,3]
[343934024,1733098244093,-487.97326239,0.00027397,3]
[343934025,1733098244105,-12.02673761,0.00027397,3]
[343934026,1733098244115,-518.05048773,0.00027397,3]
[343934027,1733098244124,-500.0,0.00027397,3]
[343934028,1733098244135,-467.05607134,0.00027397,10]
[343934029,1733098244147,-766.48,0.00027397,3]
[343934030,1733098244157,-500.0,0.00027397,3]
[343934031,1733098244166,-500.0,0.00027397,3]
[343934032,1733098244175,-500.0,0.00027397,3]
[343934033,1733098244185,-388.90146889,0.00027397,3]
[343934034,1733098244195,-267.180967,0.00027397,7]
[343934035,1733098244204,-267.180967,0.00027397,7]
[343934036,1733098244214,-267.180967,0.00027397,7]
[343934037,1733098244224,-267.180967,0.00027397,7]
[343934038,1733098244233,-267.180967,0.00027397,7]
[343934039,1733098244245,-267.180967,0.00027397,7]
[343934040,1733098244254,-208.37716935,0.00027397,3]
[343934041,1733098244297,-291.62283065,0.00027397,3]
[343934042,1733098244307,-267.180967,0.00027397,7]
[343934043,1733098244317,-267.180967,0.00027397,7]
[343934044,1733098244327,-500.0,0.00027397,3]
[343934045,1733098244336,-267.180967,0.00027397,7]
[343934046,1733098244346,-267.180967,0.00027397,7]
[343934047,1733098244355,-500.0,0.00027397,3]
[343934048,1733098244364,-500.0,0.00027397,3]
[343934049,1733098244374,-267.180967,0.00027397,7]
[343934050,1733098244384,-500.0,0.00027397,2]
[343934051,1733098244394,-267.180967,0.00027397,7]
[343934052,1733098244404,-267.180967,0.00027397,7]
[343934053,1733098244414,-267.180967,0.00027397,7]
[343934054,1733098244423,-267.180967,0.00027397,7]
[343934055,1733098244433,-267.180967,0.00027397,7]